bitfinex/quotes_SOLUSD_20250822
["timestamp","ask_amount","ask_price","bid_price","bid_amount"]
[1755853034337,3.63657119,184.38,184.35,122.42]
[1755853034531,6.20330178,184.39,184.35,122.42]
[1755853034843,8.08627496,184.38,184.35,122.42]
[1755853035016,4.41657119,184.39,184.35,123.09]
[1755853035215,8.08627496,184.38,184.35,123.09]
[1755853035420,4.41657119,184.39,184.35,123.09]
[1755853035627,0.06,184.39,184.36,0.95432314]
[1755853035915,4.1040376,184.39,184.38,0.28432314]
[1755853036110,8.1480752,184.39,184.38,0.28432314]
[1755853036307,11.78464639,184.39,184.38,0.28432314]
[1755853036522,4.1040376,184.39,184.38,0.28432314]
[1755853036728,7.74060879,184.39,184.38,0.28432314]
[1755853036920,4.1040376,184.39,184.38,0.28432314]
[1755853037131,7.74060879,184.39,184.38,0.28432314]
[1755853037443,4.10522756,184.39,184.38,0.28432314]
[1755853037621,7.74179875,184.39,184.38,0.28432314]
[1755853037823,4.10522756,184.39,184.38,0.28432314]
[1755853038018,3.69657119,184.39,184.38,0.28432314]
[1755853038225,4.10508632,184.39,184.38,0.28432314]
[1755853038428,7.74165751,184.39,184.38,0.28432314]
[1755853038620,4.10508632,184.39,184.38,0.28432314]
[1755853038831,7.74165751,184.39,184.38,0.28432314]
[1755853039038,4.10508632,184.39,184.38,0.28432314]
[1755853039345,7.74165751,184.39,184.38,0.28432314]
[1755853039554,4.10508632,184.39,184.38,0.28432314]
[1755853039713,7.74165751,184.39,184.38,0.28432314]
[1755853039908,4.10508632,184.39,184.38,0.28432314]
[1755853040150,8.45165751,184.39,184.36,87.480609]
[1755853040430,8.39165751,184.38,184.37,42.90432314]
[1755853041042,7.68165751,184.38,184.37,42.90432314]
[1755853041219,7.68165751,184.38,184.37,42.88432314]
[1755853042539,8.39165751,184.38,184.37,42.6]
[1755853046728,8.39185862,184.38,184.37,42.6]
[1755853047148,13.81548043,184.38,184.33,0.03]
[1755853047451,8.39103689,184.37,184.34,42.6]
[1755853047628,8.39103689,184.36,184.34,42.6]
[1755853047946,8.39103689,184.35,184.34,42.6]
[1755853048151,4.7544657,184.35,184.34,42.6]
[1755853048643,8.39103689,184.35,184.34,42.6]
[1755853048951,13.81550122,184.35,184.34,42.6]
[1755853049335,4.7544657,184.35,184.34,42.6]
[1755853049535,8.39103689,184.35,184.34,42.6]
[1755853049847,7.68103689,184.35,184.34,42.6]
[1755853050347,13.81550122,184.35,184.34,42.6]
[1755853050649,10.17893003,184.35,184.34,42.6]
[1755853051321,13.81550122,184.35,184.34,42.6]
[1755853051519,4.0444657,184.35,184.34,42.6]
[1755853051721,7.68222758,184.35,184.34,42.6]
[1755853053050,4.04565639,184.35,184.34,43.54432314]
[1755853053255,3.63657119,184.36,184.35,0.28432314]
[1755853053461,4.0459045,184.36,184.35,0.28432314]
[1755853053752,4.0459045,184.36,184.35,0.94432314]
[1755853053955,7.68247569,184.36,184.35,0.94432314]
[1755853054132,4.0459045,184.36,184.35,0.94432314]
[1755853054547,7.68247569,184.36,184.35,0.94432314]
[1755853054745,4.0459045,184.36,184.35,0.94432314]
[1755853055148,7.68247569,184.36,184.35,0.28432314]
[1755853055353,4.0459045,184.36,184.35,0.28432314]
[1755853055659,7.68247569,184.36,184.35,0.28432314]
[1755853055946,0.71,184.36,184.34,0.28432314]
[1755853056258,0.71,184.36,184.35,42.88432314]
[1755853056259,4.34657119,184.36,184.35,42.88432314]
[1755853056457,4.04515264,184.36,184.35,42.88432314]
[1755853056670,7.68171901,184.36,184.35,42.88432314]
[1755853056839,4.04514782,184.36,184.35,42.88432314]
[1755853057158,7.68171901,184.36,184.35,42.88432314]
[1755853057327,4.04514782,184.36,184.35,42.88432314]
[1755853057527,7.68171901,184.36,184.35,42.88432314]
[1755853057747,4.04514782,184.36,184.35,42.88432314]
[1755853057954,7.68171901,184.36,184.35,42.88432314]
[1755853058146,4.04514782,184.36,184.35,42.88432314]
[1755853058349,7.68171901,184.36,184.35,42.88432314]
[1755853058661,4.75514782,184.36,184.33,79.83]
[1755853058955,8.39116602,184.35,184.34,42.6]
[1755853059529,13.81563035,184.35,184.34,42.6]
[1755853060152,4.75459483,184.35,184.34,42.6]
[1755853060646,8.39116602,184.35,184.34,42.6]
[1755853061151,8.39116602,184.35,184.33,79.83]
[1755853061360,8.39116602,184.35,184.34,42.6]
[1755853061361,4.34657119,184.35,184.34,42.6]
[1755853061654,8.39059064,184.35,184.34,42.6]
[1755853062368,8.39059064,184.35,184.33,79.83]
[1755853062538,4.34657119,184.35,184.34,42.6]
[1755853062864,8.39047054,184.35,184.34,42.6]
[1755853065271,4.34657119,184.35,184.34,42.6]
[1755853065469,7.68036177,184.35,184.34,42.6]
[1755853065659,3.63657119,184.37,184.35,0.28432314]
[1755853065842,7.68066564,184.36,184.35,0.94432314]
[1755853066039,4.04409445,184.36,184.35,42.88432314]
[1755853066571,7.68066564,184.36,184.35,42.88432314]
[1755853066870,4.04409445,184.36,184.35,42.88432314]
[1755853067065,7.68066564,184.36,184.35,42.88432314]
[1755853067401,4.04409445,184.36,184.35,42.88432314]
[1755853067666,7.68066564,184.36,184.35,42.88432314]
[1755853067866,4.04409445,184.36,184.35,42.88432314]
[1755853068034,7.68066564,184.36,184.35,42.88432314]
[1755853068239,4.04409445,184.36,184.35,42.88432314]
[1755853068548,7.68066564,184.36,184.35,42.88432314]
[1755853068750,4.04436191,184.36,184.35,42.88432314]
[1755853068948,7.6809331,184.36,184.35,42.88432314]
[1755853069171,4.04436191,184.36,184.35,42.88432314]
[1755853069488,7.6809331,184.36,184.35,122.68432314]
[1755853069764,4.04436191,184.36,184.35,122.68432314]
[1755853069961,7.6809331,184.36,184.35,122.68432314]
[1755853070161,4.04436191,184.36,184.35,122.68432314]
[1755853070386,7.6809331,184.36,184.35,122.68432314]
[1755853070670,4.04436191,184.36,184.35,122.68432314]
[1755853070872,7.6809331,184.36,184.35,122.68432314]
[1755853071079,4.04436191,184.36,184.35,122.68432314]
[1755853071283,7.6809331,184.36,184.35,122.68432314]
[1755853071497,10.15853201,184.36,184.35,79.8]
[1755853071790,8.3709331,184.36,184.35,122.4]
[1755853072389,7.6809331,184.36,184.35,122.4]
[1755853072568,4.04436191,184.36,184.35,123.1]
[1755853072886,7.6809331,184.36,184.35,122.4]
[1755853073082,4.04436191,184.36,184.35,122.4]
[1755853073454,7.6809331,184.36,184.35,122.4]
[1755853073663,4.04436191,184.36,184.35,122.4]
[1755853073966,7.6809331,184.36,184.35,122.4]
[1755853074287,4.04436191,184.36,184.35,122.4]
[1755853074596,7.6809331,184.36,184.35,122.4]
[1755853074778,4.04436191,184.36,184.35,122.4]
[1755853075091,7.68258066,184.36,184.35,122.4]
[1755853075293,4.04600947,184.36,184.35,42.6]
[1755853075588,7.68258066,184.36,184.35,43.58432314]
[1755853075789,3.63657119,184.38,184.35,43.58432314]
[1755853076099,7.6833507,184.37,184.35,43.58432314]
[1755853076386,7.6833507,184.36,184.35,42.88432314]
[1755853077792,8.3733507,184.36,184.35,42.6]
[1755853078094,7.6833507,184.36,184.35,42.6]
[1755853078313,7.68406166,184.36,184.35,42.6]
[1755853078471,7.68406166,184.36,184.35,43.58432314]
[1755853078680,7.68406166,184.36,184.35,49.00878747]
[1755853079572,4.04749047,184.36,184.35,49.00878747]
[1755853080066,3.64036342,184.38,184.36,13.87991715]
[1755853080269,0.06,184.39,184.38,0.28432314]
[1755853080473,7.74625903,184.39,184.38,0.28432314]
[1755853080707,0.06,184.39,184.38,14.57991715]
[1755853080889,0.06,184.39,184.38,61.93187156]
[1755853081283,0.06,184.39,184.38,57.15991715]
[1755853081809,0.06,184.39,184.38,62.58349888]
[1755853081966,0.06,184.39,184.38,20.00349888]
[1755853082171,0.06,184.39,184.38,62.58349888]
[1755853082497,0.06,184.39,184.38,67.89781146]
[1755853082798,0.06,184.39,184.38,71.53661146]
[1755853084786,0.06,184.39,184.38,70.99425329]
[1755853086483,0.06,184.39,184.38,66.22229888]
[1755853086809,0.06,184.39,184.38,65.52229888]
[1755853086986,0.06,184.39,184.38,145.32229888]
[1755853089605,0.75,184.39,184.38,3.6388]
[1755853089945,6.17328759,184.39,184.33,0.03]
[1755853090107,5.48328759,184.39,184.35,0.28432314]
[1755853090415,5.48328759,184.39,184.36,42.56]
[1755853090416,0.69,184.38,184.36,42.56]
[1755853091521,6.11371089,184.38,184.36,42.56]
[1755853091810,0.69,184.37,184.36,42.56]
[1755853092391,0.69,184.37,184.34,0.03]
[1755853092598,0.69,184.37,184.36,42.56]
[1755853093505,6.1138759,184.37,184.36,42.56]
[1755853094941,6.1138759,184.37,184.34,0.03]
[1755853095090,0.69,184.36,184.34,42.59]
[1755853096115,0.06,184.39,184.34,42.59]
[1755853096321,0.69,184.38,184.34,42.59]
[1755853096890,0.69,184.38,184.36,0.03]
[1755853097699,6.11358173,184.38,184.36,0.03]
[1755853098196,5.42358173,184.38,184.36,0.03]
[1755853098398,0.67,184.37,184.36,0.03]
[1755853100611,6.0938759,184.37,184.36,0.03]
[1755853101609,0.67,184.37,184.36,0.03]
[1755853102614,6.0938759,184.37,184.36,0.03]
[1755853112757,10.12852849,184.37,184.36,0.03]
[1755853119353,13.7656292,184.37,184.36,0.03]
[1755853119550,10.12852849,184.37,184.36,0.03]
[1755853120562,6.0938759,184.37,184.36,0.03]
[1755853120761,10.12681863,184.37,184.36,0.03]
[1755853121567,10.12653244,184.37,184.36,0.03]
[1755853125767,7.33658921,184.36,184.34,0.03]
[1755853125956,26.0,184.34,184.33,0.03]
[1755853126271,33.66975725,184.34,184.33,0.03]
[1755853126567,36.51562125,184.34,184.33,0.03]
[1755853127044,36.51562125,184.34,184.33,1e-08]
[1755853127241,36.51562125,184.34,184.3,0.1]
[1755853127462,26.0,184.31,184.3,0.1]
[1755853127655,39.09539883,184.31,184.3,0.1]
[1755853127847,39.79539883,184.31,184.3,0.1]
[1755853128047,40.33728676,184.31,184.3,0.1]
[1755853129263,40.33033083,184.31,184.3,0.1]
[1755853129774,40.39033083,184.31,184.3,0.1]
[1755853130367,40.38894123,184.31,184.3,0.1]
[1755853130566,44.78120629,184.31,184.3,0.1]
[1755853130753,44.78082023,184.31,184.3,0.1]
[1755853131152,42.93311528,184.31,184.3,0.1]
[1755853131370,46.95704023,184.31,184.3,0.1]
[1755853131570,44.78082023,184.31,184.3,0.1]
[1755853131872,46.95704023,184.31,184.3,0.1]
[1755853132063,44.78082023,184.31,184.3,0.1]
[1755853133261,44.78041916,184.31,184.3,0.1]
[1755853133459,46.95663916,184.31,184.3,0.1]
[1755853134251,44.78041916,184.31,184.3,0.1]
[1755853134996,44.77686394,184.31,184.3,0.1]
[1755853136382,44.77515236,184.31,184.3,0.1]
[1755853138876,44.77515236,184.31,184.3,1e-08]
[1755853139172,89.47149036,184.31,184.3,1e-08]
[1755853139382,85.45323328,184.31,184.3,1e-08]
[1755853139562,46.94876347,184.31,184.3,1e-08]
[1755853139761,89.46876347,184.31,184.3,1e-08]
[1755853139972,89.46882211,184.31,184.3,1e-08]
[1755853140771,87.29248411,184.31,184.3,1e-08]
[1755853140975,87.31248411,184.31,184.3,1e-08]
[1755853141688,44.07248411,184.31,184.3,1e-08]
[1755853141891,13.68021905,184.31,184.3,1e-08]
[1755853142073,39.13833112,184.31,184.3,1e-08]
[1755853142390,39.38438568,184.31,184.3,1e-08]
[1755853143274,44.64185328,184.31,184.3,1e-08]
[1755853147899,44.64205132,184.31,184.3,1e-08]
[1755853148280,44.64211073,184.31,184.3,1e-08]
[1755853150085,18.64211073,184.31,184.3,1e-08]
[1755853150400,61.16211073,184.31,184.3,1e-08]
[1755853151873,63.33833073,184.31,184.3,1e-08]
[1755853152900,26.0,184.29,184.28,1e-08]
[1755853153094,76.71482576,184.29,184.28,1e-08]
[1755853153298,77.41482576,184.29,184.28,1e-08]
[1755853153798,79.59128176,184.29,184.28,1e-08]
[1755853154104,85.01751215,184.29,184.28,1e-08]
[1755853157205,85.02003767,184.29,184.28,1e-08]
[1755853157512,81.00167503,184.29,184.28,1e-08]
[1755853157994,85.02063156,184.29,184.28,1e-08]
[1755853160397,85.02193332,184.29,184.28,1e-08]
[1755853161105,85.00193332,184.29,184.28,1e-08]
[1755853162111,98.59752733,184.29,184.28,1e-08]
[1755853163597,98.65752733,184.29,184.28,1e-08]
[1755853164417,41.86193332,184.29,184.28,1e-08]
[1755853164617,84.36193332,184.29,184.28,1e-08]
[1755853164813,85.03193332,184.29,184.28,1e-08]
[1755853166625,85.03796506,184.29,184.28,1e-08]
[1755853167524,84.36796506,184.29,184.28,1e-08]
[1755853167712,85.03796506,184.29,184.28,1e-08]
[1755853168425,89.58434095,184.29,184.28,1e-08]
[1755853169114,46.41434095,184.29,184.28,1e-08]
[1755853169316,89.58434095,184.29,184.28,1e-08]
[1755853169635,85.03796506,184.29,184.26,0.03]
[1755853169925,4.53630047,184.27,184.26,0.03]
[1755853170216,50.70527867,184.27,184.26,0.03]
[1755853170523,51.37527867,184.27,184.26,0.03]
[1755853170907,53.55197167,184.27,184.26,0.03]
[1755853171326,58.97879101,184.27,184.26,0.03]
[1755853171506,26.0,184.25,184.24,0.03]
[1755853171699,76.16339074,184.25,184.24,0.03]
[1755853171900,77.37527867,184.25,184.24,0.03]
[1755853172431,76.70527867,184.25,184.24,0.03]
[1755853172902,82.80268708,184.25,184.24,0.03]
[1755853173418,84.97961708,184.25,184.24,0.03]
[1755853173635,98.54813811,184.25,184.19,0.71]
[1755853173806,26.0,184.21,184.19,0.71]
[1755853174102,7.66339074,184.2,184.19,0.71]
[1755853174909,13.09227239,184.2,184.19,0.71]
[1755853175313,7.66339074,184.2,184.19,0.71]
[1755853175717,3.63710071,184.2,184.19,0.71]
[1755853175916,7.66888427,184.2,184.19,0.71]
[1755853178308,3.63710071,184.2,184.19,0.71]
[1755853178715,3.63710071,184.23,184.19,0.71]
[1755853178908,7.66862299,184.22,184.19,0.71]
[1755853179124,3.63710071,184.21,184.19,0.71]
[1755853179332,3.63710071,184.23,184.19,0.71]
[1755853179521,7.66835255,184.22,184.19,0.71]
[1755853179730,3.63710071,184.21,184.19,0.71]
[1755853180039,3.63710071,184.23,184.19,0.71]
[1755853180215,7.66823961,184.22,184.19,0.71]
[1755853180416,3.63710071,184.21,184.19,0.74]
[1755853180723,3.63710071,184.23,184.19,0.74]
[1755853181033,7.6681252,184.22,184.19,6.16913487]
[1755853181322,3.63710071,184.21,184.2,0.71]
[1755853181626,26.0,184.23,184.2,0.71]
[1755853181830,7.66801094,184.22,184.2,0.71]
[1755853182013,3.63710071,184.22,184.2,0.71]
[1755853183607,3.63710071,184.22,184.2,6.13885905]
[1755853183911,3.63710071,184.22,184.21,0.71]
[1755853186133,3.63710071,184.23,184.2,0.28432314]
[1755853186309,35.06517974,184.23,184.19,0.31432314]
[1755853186510,3.63710071,184.22,184.19,1.02432314]
[1755853188035,3.63710071,184.22,184.1,197.15856865]
[1755853188036,26.0,184.19,184.1,0.69]
[1755853188237,26.0,184.19,184.11,0.69]
[1755853188533,5.42976597,184.17,184.11,0.69]
[1755853188711,3.62846296,184.16,184.11,0.69]
[1755853189128,4.29846296,184.16,184.11,0.69]
[1755853189436,0.67,184.15,184.11,0.69]
[1755853190222,0.67,184.14,184.08,0.69]
[1755853190431,26.67,184.14,184.07,13.59559401]
[1755853190702,5.43124049,184.12,184.07,0.69]
[1755853190913,5.43124049,184.12,184.07,0.28432314]
[1755853191129,3.62846296,184.13,184.08,0.69]
[1755853191337,9.05941905,184.13,184.09,0.69]
[1755853191530,9.72941905,184.13,184.09,0.69]
[1755853191710,4.29846296,184.13,184.09,0.69]
[1755853191909,4.29846296,184.13,184.07,0.28432314]
[1755853191910,3.62846296,184.13,184.1,0.69]
[1755853192109,3.62846296,184.13,184.11,0.69]
[1755853193014,3.62846296,184.13,184.09,0.97432314]
[1755853193333,9.72907513,184.15,184.09,0.97432314]
[1755853193632,4.02255153,184.14,184.09,0.97432314]
[1755853193834,4.69255153,184.14,184.1,0.69]
[1755853194331,4.29846296,184.14,184.1,0.69]
[1755853194511,0.67,184.14,184.1,0.69]
[1755853194709,9.72856555,184.16,184.11,0.69]
[1755853195018,3.62846296,184.15,184.12,0.69]
[1755853195227,3.62846296,184.14,184.12,0.69]
[1755853195421,7.6496142,184.13,184.12,0.69]
[1755853196516,7.6496142,184.13,184.12,0.97432314]
[1755853196715,3.62846296,184.16,184.12,6.12124049]
[1755853197040,7.64920989,184.15,184.12,5.43124049]
[1755853197212,7.64920989,184.14,184.12,5.43124049]
[1755853197542,3.62846296,184.16,184.12,6.12124049]
[1755853197840,7.64902695,184.15,184.13,0.28432314]
[1755853198040,3.62846296,184.14,184.13,0.28432314]
[1755853198236,3.62846296,184.15,184.13,0.28432314]
[1755853198424,3.62846296,184.14,184.13,0.28432314]
[1755853198621,3.62846296,184.16,184.13,0.97432314]
[1755853198827,26.0,184.17,184.13,0.97432314]
[1755853198828,7.64863771,184.15,184.13,0.28432314]
[1755853199039,3.62846296,184.14,184.13,0.28432314]
[1755853199335,3.62846296,184.15,184.13,0.28432314]
[1755853199521,3.62846296,184.14,184.13,0.28432314]
[1755853199724,3.62846296,184.15,184.13,0.28432314]
[1755853200030,3.62846296,184.14,184.13,0.28432314]
[1755853200230,3.62846296,184.15,184.13,0.28432314]
[1755853200434,3.62846296,184.14,184.13,5.71526866]
[1755853200637,3.62846296,184.15,184.13,6.40526866]
[1755853200835,3.62846296,184.18,184.14,0.69]
[1755853201148,7.64912929,184.17,184.14,0.69]
[1755853201332,8.31912929,184.16,184.13,80.08432314]
[1755853201640,3.62846296,184.17,184.14,0.69]
[1755853201848,7.64914859,184.16,184.14,0.69]
[1755853202030,3.62846296,184.18,184.14,6.12063773]
[1755853202225,7.6492276,184.17,184.14,6.12063773]
[1755853202424,7.6492276,184.16,184.14,6.12063773]
[1755853202642,3.62846296,184.18,184.14,6.12063773]
[1755853202826,7.64936582,184.17,184.14,6.12063773]
[1755853203032,7.64936582,184.16,184.14,6.12063773]
[1755853203235,3.62846296,184.18,184.14,6.12063773]
[1755853203446,7.65073394,184.17,184.14,6.12063773]
[1755853203648,7.65073394,184.16,184.14,6.12063773]
[1755853203849,3.62846296,184.17,184.14,6.12063773]
[1755853204037,7.65026212,184.16,184.14,6.12063773]
[1755853204242,3.62846296,184.17,184.14,6.12063773]
[1755853204552,7.6503235,184.16,184.14,5.43063773]
[1755853204738,4.29846296,184.17,184.14,5.43063773]
[1755853204929,7.64884375,184.16,184.14,5.43063773]
[1755853205129,3.62846296,184.16,184.14,5.43063773]
[1755853206445,3.62846296,184.15,184.14,5.71496087]
[1755853206648,4.29846296,184.19,184.14,5.71496087]
[1755853206951,8.31986489,184.18,184.14,6.40496087]
[1755853207251,7.64986489,184.17,184.15,0.69]
[1755853207437,7.64986489,184.16,184.14,48.19496087]
[1755853207623,3.62846296,184.15,184.14,48.19496087]
[1755853207933,3.62846296,184.17,184.14,48.19496087]
[1755853208142,7.6499381,184.16,184.14,48.19496087]
[1755853208453,3.62846296,184.15,184.14,48.19496087]
[1755853208655,3.62846296,184.17,184.14,48.19496087]
[1755853208832,7.65015272,184.16,184.14,48.19496087]
[1755853209032,3.62846296,184.15,184.14,48.19496087]
[1755853209235,3.62846296,184.19,184.15,0.28432314]
[1755853209432,7.65053653,184.18,184.15,0.28432314]
[1755853209648,7.65053653,184.17,184.15,0.28432314]
[1755853209852,5.20784756,184.21,184.16,0.69]
[1755853210091,12.33137143,184.2,184.16,79.8]
[1755853210231,8.31018579,184.19,184.16,79.8]
[1755853210430,7.64018579,184.18,184.16,79.8]
[1755853210732,3.61900015,184.17,184.16,85.51438395]
[1755853211350,3.61900015,184.17,184.16,80.08432314]
[1755853212858,3.61900015,184.17,184.16,85.51438395]
[1755853213856,3.61900015,184.17,184.16,127.99438395]
[1755853215068,3.61900015,184.17,184.16,122.56432314]
[1755853215069,7.64136436,184.17,184.16,122.56432314]
[1755853216138,8.31136436,184.17,184.16,122.56432314]
[1755853216539,13.74113033,184.17,184.16,79.8]
[1755853216740,12.33424121,184.17,184.16,79.8]
[1755853217743,13.74113033,184.17,184.16,79.8]
[1755853217951,17.76554732,184.17,184.16,79.8]
[1755853218144,8.31136436,184.17,184.16,79.8]
[1755853219643,13.74113033,184.17,184.16,79.8]
[1755853219843,8.31136436,184.17,184.16,79.8]
[1755853220172,8.31136436,184.17,184.14,122.28]
[1755853220371,8.32136436,184.16,184.14,122.28]
[1755853220554,7.64136436,184.15,184.14,122.28]
[1755853221150,3.61900015,184.15,184.14,122.28]
[1755853221545,7.64329457,184.15,184.14,122.28]
[1755853223669,7.64329457,184.15,184.14,122.56432314]
[1755853223851,3.61900015,184.15,184.14,128.70497373]
[1755853224047,3.61900015,184.15,184.14,122.56432314]
[1755853224461,3.61900015,184.15,184.14,127.99497373]
[1755853225044,3.61900015,184.16,184.15,0.28432314]
[1755853225261,3.61900015,184.16,184.15,42.76432314]
[1755853226163,3.61900015,184.16,184.15,122.56432314]
[1755853226866,3.61900015,184.16,184.15,128.70467882]
[1755853227644,3.61900015,184.19,184.15,128.70467882]
[1755853227861,3.61900015,184.18,184.15,128.70467882]
[1755853228069,3.61900015,184.17,184.15,128.70467882]
[1755853228265,3.61900015,184.16,184.15,122.56432314]
[1755853228467,0.68,184.17,184.15,122.56432314]
[1755853228683,3.61900015,184.16,184.15,122.56432314]
[1755853230267,3.61900015,184.16,184.15,127.99467882]
[1755853232597,3.61900015,184.16,184.15,122.56432314]
[1755853233081,3.61900015,184.16,184.15,127.99467882]
[1755853233960,3.61900015,184.16,184.15,122.56432314]
[1755853234165,4.29900015,184.16,184.15,79.83]
[1755853234363,4.29900015,184.16,184.15,122.31]
[1755853236243,4.29900015,184.16,184.15,79.83]
[1755853236457,40.26690852,184.16,184.15,0.03]
[1755853236662,39.75677794,184.16,184.15,0.03]
[1755853236988,44.2946255,184.16,184.15,0.03]
[1755853237483,39.75677794,184.16,184.13,122.31]
[1755853237686,12.85898292,184.15,184.13,122.31]
[1755853237984,8.32671713,184.14,184.13,122.31]
[1755853239685,3.61900015,184.14,184.13,122.31]
[1755853239887,7.64893694,184.14,184.13,122.31]
[1755853240114,7.64893694,184.14,184.13,122.59432314]
[1755853240587,3.61900015,184.14,184.13,142.33086267]
[1755853242267,3.61900015,184.14,184.13,158.65086267]
[1755853242467,4.59226579,184.19,184.14,0.28432314]
[1755853242468,0.06,184.19,184.14,0.28432314]
[1755853242676,3.6288559,184.18,184.15,56.78559401]
[1755853242894,3.6288559,184.17,184.15,56.07559401]
[1755853243198,0.06,184.19,184.17,0.28432314]
[1755853243492,3.62902271,184.18,184.17,0.28432314]
[1755853243705,3.62902271,184.18,184.17,42.76432314]
[1755853243864,3.62902271,184.18,184.17,48.19408911]
[1755853245392,3.62902271,184.18,184.17,42.76432314]
[1755853246003,3.62902271,184.18,184.17,48.19408911]
[1755853246872,3.62902271,184.18,184.17,42.76432314]
[1755853247074,4.33902271,184.18,184.17,42.76432314]
[1755853247488,3.62902271,184.18,184.17,42.76432314]
[1755853248795,3.62902271,184.18,184.17,122.56432314]
[1755853249506,0.77,184.19,184.17,122.56432314]
[1755853249672,0.77,184.19,184.17,127.99396309]
[1755853249673,0.06,184.19,184.17,127.99396309]
[1755853249874,0.06,184.19,184.18,0.7]
[1755853250181,3.68517796,184.19,184.17,130.87053809]
[1755853250371,3.62517796,184.18,184.17,144.4661321]
[1755853250769,3.62517796,184.18,184.17,138.33649215]
[1755853250970,4.33517796,184.18,184.17,138.33649215]
[1755853251485,4.33517796,184.18,184.17,136.15991715]
[1755853252687,3.62517796,184.18,184.17,136.15991715]
[1755853253801,3.62517796,184.18,184.17,141.58968312]
[1755853254194,3.68393231,184.19,184.18,13.87991715]
[1755853254502,0.06,184.19,184.18,20.00938831]
[1755853254685,0.06,184.19,184.18,99.80938831]
[1755853254886,0.06,184.19,184.18,103.49332131]
[1755853255287,0.06,184.19,184.18,119.81332131]
[1755853262710,0.06,184.19,184.18,119.11332131]
[1755853263016,0.06,184.19,184.18,119.81332131]
[1755853266186,1e-08,184.19,184.18,119.81332131]
[1755853267682,1e-08,184.19,184.18,119.11332131]
[1755853267889,0.71000001,184.19,184.18,97.07952701]
[1755853268115,0.71000001,184.19,184.18,59.71952701]
[1755853268408,0.71000001,184.19,184.18,60.00385015]
[1755853268592,0.71000001,184.19,184.18,59.71952701]
[1755853268786,0.71000001,184.19,184.18,60.00385015]
[1755853270135,0.71000001,184.19,184.18,42.58216157]
[1755853270703,0.71000001,184.19,184.18,42.72432314]
[1755853273418,0.71000001,184.19,184.18,122.52432314]
[1755853276398,1e-08,184.19,184.18,122.52432314]
[1755853277821,1e-08,184.19,184.18,136.11991715]
[1755853278614,1e-08,184.19,184.18,138.29637315]
[1755853279201,1e-08,184.19,184.18,143.72584431]
[1755853281022,1e-08,184.19,184.18,138.29637315]
[1755853281235,0.06,184.26,184.25,55.91559401]
[1755853281524,0.06,184.26,184.25,99.27991715]
[1755853281827,0.06,184.26,184.25,101.45507115]
[1755853283126,0.06,184.26,184.25,106.88247956]
[1755853285225,0.06,184.26,184.25,90.56247956]
[1755853285912,1e-08,184.26,184.25,91.1052204]
[1755853286412,1e-08,184.26,184.25,90.56247956]
[1755853288440,0.06,184.31,184.3,39.87991715]
[1755853288608,0.06,184.31,184.3,162.64251074]
[1755853288809,1e-08,184.31,184.3,162.73991715]
[1755853289632,1e-08,184.31,184.3,181.23436215]
[1755853290241,1e-08,184.31,184.3,127.28029812]
[1755853290446,1e-08,184.31,184.3,169.70029812]
[1755853293116,1e-08,184.31,184.3,170.34029812]
[1755853294231,1e-08,184.31,184.3,90.54029812]
[1755853295155,1e-08,184.31,184.3,107.40289171]
[1755853296444,1e-08,184.31,184.3,64.34289171]
[1755853296643,1e-08,184.31,184.3,106.20029812]
[1755853296819,0.67000001,184.31,184.3,106.20029812]
[1755853297125,1e-08,184.31,184.3,106.20029812]
[1755853299730,1e-08,184.31,184.3,106.84029812]
[1755853299942,0.06,184.33,184.3,106.84029812]
[1755853299943,0.06,184.33,184.32,80.08432313]
[1755853300168,0.06,184.33,184.32,122.46432313]
[1755853300522,0.73,184.33,184.32,130.06423335]
[1755853301242,0.06,184.33,184.32,143.65982736]
[1755853301442,0.06,184.33,184.32,144.29982736]
[1755853302026,0.06,184.33,184.32,160.61982736]
[1755853302359,0.06,184.33,184.32,159.97982736]
[1755853302657,0.06,184.33,184.32,160.61982736]
[1755853303032,0.06,184.33,184.32,159.97982736]
[1755853303355,0.06,184.33,184.32,293.97982736]
[1755853304152,0.73,184.33,184.32,126.99550422]
[1755853304355,0.73,184.33,184.32,169.37550422]